[Event "British Championship 2024"]
[Site "Hull"]
[Date "2024.08.01"]
[Round "6.5"]
[White "Conquest, Stuart C"]
[Black "Kanyamarala, Tarun"]
[Result "1/2-1/2"]
[Annotator "TA"]
[ECO "D40"]
[WhiteElo "2510"]
[BlackElo "2333"]
[PlyCount "69"]
[EventDate "2024.07.31"]
[EventCountry "GBR"]
[SourceTitle "playchess.com"]
[Source "ChessBase"]
[SourceQuality "1"]
[TimeControl "40/5400+30:1800+30"]

{[%evp 18,69,10,7,20,0,0,11,36,35,47,44,66,14,8,11,119,110,262,253,250,104,259,256,322,305,315,315,320,304,432,214,730,0,0,0,0,0,0,0,939,79,629,618,578,87,90,85,85,0,0,0,95,0]} 1. d4 {[%emt 0:00:54]} Nf6 {[%emt 0:00:11]} 2. c4 {[%emt 0:00:48]} e6 {[%emt 0:00:14]} 3. Nf3 {[%emt 0:01:57]} d5 {[%emt 0:00:22]} 4. Nc3 {[%emt 0:01:06]} c5 {[%emt 0:00:29]} 5. e3 {[%emt 0:02:13]} Nc6 {[%emt 0:01:15]} 6. a3 {[%emt 0:00:47]} dxc4 {[%emt 0:00:35]} 7. Bxc4 {[%emt 0:00:30]} a6 {[%emt 0:00:27]} 8. O-O {[%emt 0:02:21]} b5 {[%emt 0:04:38]} 9. Ba2 {[%emt 0:11:36]} Bb7 {[%emt 0:02:07]} 10. Qe2 {[%emt 0:04:13]} cxd4 {[%emt 0:01:29]} 11. Rd1 $1 {[%emt 0:02:07][%cal Re3d4]} b4 {[%emt 0:03:30]} 12. axb4 {[%emt 0:06:51][%cal Rf3d4]} Bxb4 {[%emt 0:01:23][%cal Od4d3] The position is equal.} 13. exd4 {[%emt 0:00:46] d5 would now be deadly.} Ne7 {[%emt 0:20:40]} 14. Bg5 {[%emt 0:08:50] Bxf6 is the strong threat.} O-O {[%emt 0:06:12][%cal Be8g8,Bg8f8,Bf8e7,Be7d6][%mdl 32]} 15. Bb1 {[%emt 0:17:19]} (15. Bxf6 $14 gxf6 16. d5 exd5 17. Nh4 Bxc3 18. bxc3) 15... Ned5 $11 {[%emt 0:18:55]} 16. Qd3 {[%emt 0:03:59] Black must now prevent Nxd5.} Re8 {[%emt 0:14:51]} (16... g6 $1 $11) 17. Nxd5 $16 {[%emt 0:10:05]} Qxd5 {[%emt 0:00:49]} (17... exd5 $16 18. Bxf6 Qxf6) 18. Bxf6 $18 {[%emt 0:00:46]} gxf6 {[%emt 0:00:05]} 19. Qxh7+ {[%emt 0:00:17]} Kf8 {[%emt 0:00:05]} 20. Nh4 $1 {[%emt 0:11:29][%cal Ob1g6] aiming for Bg6!} Ke7 {[%emt 0:06:50]} 21. Ng6+ {[%emt 0:04:40]} Kd6 {[%emt 0:02:19][%csl Gb7][%cal Rd5g2]} 22. Nf4 {[%emt 0:01:03]} (22. Qxf7 $2 Qxg2#) 22... Qg5 {[%emt 0:00:35] [#]} 23. g3 {[%emt 0:04:15] Threatens to win with d5.} (23. Qxf7 $2 Re7 24. Qg6 Qxf4 $19) 23... Qg4 {[%emt 0:04:53]} (23... Bd5 {keeps fighting.} 24. Nxd5 (24. Qxf7 Re7 $18) 24... exd5) 24. Ba2 {[%emt 0:00:49]} (24. Be4 $142 Rh8 25. Qxf7 Bxe4 26. Rdc1) 24... Bf3 {[%emt 0:02:14]} (24... Qf5 25. Qxf5 (25. Qxf7 Re7 $18) 25... exf5 26. Bxf7 Re7) 25. Rd3 $2 {[%emt 0:02:39]} ({White has to play} 25. d5 $18 e5 26. Qxf7 (26. h3 Qg8 $11) 26... exf4 27. Qxf6+ Kd7 28. Qc6+ Ke7 29. Qc7+ (29. Qb7+ Kf6 $16) 29... Kf6 30. Rd4 (30. Qxf4+ $2 Qxf4 31. Rdc1 Qf5 $19)) 25... Rh8 $1 $11 {[%emt 0:06:08]} 26. Qxf7 {[%emt 0:00:34]} Rxh2 $1 {[%emt 0:00:15][%csl Gf3][%cal Rh2h1]} 27. Rxf3 $40 {[%emt 0:00:31][%cal Ra2e6][%mdl 128] Black needs to defend precisely.} (27. Kxh2 Rh8+) 27... Rah8 $1 {[%emt 0:00:07] ( -> ...Rh1+)} 28. Kf1 $1 {[%emt 0:00:21][%cal Ra2e6]} (28. Qxe6+ $2 Qxe6 29. Re3 Rh1+ 30. Kg2 Qxe3 (30... Rxa1 $2 31. Rxe6+ Kd7 32. Rxa6 $18) 31. fxe3 R8h2+ (31... Rxa1 $2 32. Bf7 $19) 32. Kf3 Rxa1 $19) (28. Ra3 $2 Rh1+ 29. Kg2 R8h2#) 28... R2h7 $2 {[%emt 0:01:56][%mdl 8192]} (28... Rh1+ $11 29. Ke2 Rxa1) 29. Qxf6 $2 {[%emt 0:00:36]} (29. Qxe6+ Qxe6 30. Bxe6 (30. Nxe6 $2 Rh1+ 31. Ke2 Rxa1 $19) 30... Rh1+ 31. Ke2 Rxa1 $15) (29. Bxe6 $18 {[%cal Ra1a6] is the precise move to win.} a5 30. Qxf6 (30. Bxg4 Rxf7 31. Kg2 Bd2 $18) (30. Qxh7 Rxh7 31. Bxg4 Rh1+ 32. Ke2 Rxa1 $18)) 29... Rh1+ $2 {[%emt 0:00:34][%mdl 8192]} (29... Qxf3 $16 30. Qxe6+ Kc7 31. Qc4+ (31. Qxa6 $2 Rh1#) 31... Kd7 32. Qe6+ (32. Qxb4 $2 Rh1#) 32... Kc7 33. Qc4+ (33. Qxa6 $2 Rh1#) 33... Kd7 34. Qe6+ (34. Qxb4 $2 Rh1#) 34... Kc7) 30. Ke2 $18 {[%emt 0:00:03][%cal Ra2e6]} Rxa1 {[%emt 0:00:07]} 31. Nd3 {[%emt 0:00:54] Repels Re1+} (31. Qxh8 Re1+ (31... Rxa2 $2 32. Qf8+ Kd7 33. Qxb4 $18) 32. Kd3 Qxf3+ 33. Kc4 Ba5 34. Qb8+ (34. Qf8+ Kd7 $11) 34... Kd7 35. Qa7+ Bc7 $11) (31. Qe5+ $18 Kc6 32. Nd3 (32. Qxh8 Re1+ 33. Kd3 Qf5+ 34. Kc4 Rc1+ 35. Kxb4 Qb5+ 36. Ka3 Qa5+ 37. Kb3 Qb5+ 38. Ka3 Qa5+ 39. Kb3 Qb6+ 40. Ka4 Qb5+ 41. Ka3 $11) (32. Qxe6+ Qxe6+ 33. Bxe6 Re1+ 34. Kd3 Kd6 $14)) 31... Qe4+ $16 {[%emt 0:01:06]} 32. Re3 {[%emt 0:00:04]} Qg4+ {[%emt 0:00:09]} 33. Rf3 {[%emt 0:00:26] The board is on fire.} Qe4+ {[%emt 0:00:01]} 34. Re3 {[%emt 0:00:13]} Qg4+ {[%emt 0:00:01] [#]} 35. Rf3 {[%emt 0:00:16] Weighted Error Value: White=0.88/Black=0.53.  Loses game:     	---       	Black=2      Missed win:     	White=2     	---        Mistake:       	White=3     	Black=4      Inaccurate:     	---       	Black=1      OK:         	White=8     	Black=6      Best:        	White=3     	Black=3      Strong:       	White=3     	Black=3} (35. f3 $1 $16 Rh2+ (35... Qxg3 $2 {too greedy.} 36. Rxe6+ Kd7 37. Ne5+ $18) 36. Nf2 Re1+ (36... Qxg3 37. Rxe6+ Kc7 38. Qf7+) 37. Kd3 Qf5+ (37... Rxf2 $2 {perishes.} 38. Qe5+ Kc6 39. fxg4 $18) 38. Ne4+ Kc7 39. Rxe1 Bxe1 40. Qe7+ Kb8 41. Qd6+ Ka7 42. Ke3) 1/2-1/2

[Event "British Championship 2024"]
[Site "Hull"]
[Date "2024.08.01"]
[Round "6.6"]
[White "Bazakutsa, Svyatoslav"]
[Black "Pein, Malcolm"]
[Result "1-0"]
[Annotator "TA"]
[ECO "A23"]
[WhiteElo "2470"]
[BlackElo "2274"]
[PlyCount "109"]
[EventDate "2024.07.31"]
[EventCountry "GBR"]
[SourceTitle "playchess.com"]
[Source "ChessBase"]
[SourceQuality "1"]
[TimeControl "40/5400+30:1800+30"]

{[%evp 17,108,0,0,-14,64,68,77,74,79,0,37,9,0,0,0,0,92,98,97,102,99,87,106,106,140,143,124,128,123,116,256,122,136,70,273,271,383,387,395,383,409,414,400,405,387,349,364,385,333,200,188,208,192,204,275,268,284,284,277,268,308,305,335,321,335,321,460,454,583,578,555,443,540,548,725,722,701,669,1166,1180,1233,1160,1323,1255,2708,2493,4817,2513,4941,4941,4829,4433,1924]} 1. c4 {[%emt 0:05:48]} e5 {[%emt 0:00:22]} 2. g3 {[%emt 0:00:05]} Nf6 {[%emt 0:00:21]} 3. Bg2 {[%emt 0:00:07]} Bc5 {[%emt 0:00:32]} 4. Nc3 {[%emt 0:00:19]} c6 {[%emt 0:01:18]} 5. Nf3 {[%emt 0:00:17]} e4 {[%emt 0:00:19]} 6. Nh4 {[%emt 0:00:17] A23: English Opening: 1...e5 2 Nc3 Nf6 3 g3 c6.} d5 {[%emt 0:00:09]} 7. cxd5 {[%emt 0:00:10]} cxd5 {[%emt 0:00:05]} 8. d3 {[%emt 0:00:16]} Ng4 {[%emt 0:01:06]} 9. d4 {[%emt 0:00:07]} Be7 {[%emt 0:02:07]} 10. f3 {[%emt 0:00:08]} Bxh4 $146 {[%emt 0:08:07]} (10... exf3 $1 $11 11. Nxf3 O-O) ({Predecessor:} 10... exf3 11. Nxf3 Nc6 12. O-O Be6 13. a3 h6 14. Bf4 O-O 15. Rc1 Rc8 16. b4 a5 {1-0 Malewicz,F-Bauer,R Freechess-ch 18619-G9 2015}) 11. fxg4 $14 {[%emt 0:00:22]} Be7 {[%emt 0:08:54]} 12. Qb3 {[%emt 0:00:31]} Nc6 {[%emt 0:21:45]} 13. Nxd5 {[%emt 0:25:43]} (13. Qxd5 $16 Bxg4 14. e3) 13... O-O {[%emt 0:00:32]} (13... Be6 $5 14. Bxe4 (14. Qxb7 $2 Bxd5 15. O-O Rb8 $19) 14... Nb4 15. Qa4+ Bd7 $11) 14. Bxe4 {[%emt 0:15:45]} (14. e3 {simplifies} Bxg4 15. O-O Kh8 16. Nxe7 Qxe7 17. Bd2) 14... Re8 {[%emt 0:12:00]} (14... Nxd4 15. Qd3 Nc6 16. Bxh7+ Kh8 17. Bf5 $16) 15. O-O {[%emt 0:15:31]} Nxd4 {[%emt 0:21:01]} 16. Qd3 {[%emt 0:02:28]} Bc5 {[%emt 0:05:56]} (16... Nxe2+ $1 $11 {remains equal.} 17. Qxe2 Bc5+ 18. Kh1 Qxd5 19. Bxd5 Rxe2) 17. e3 $16 {[%emt 0:00:37]} (17. Bxh7+ Kh8 18. Ne3 Qb6 19. Rxf7 Nxe2+ 20. Qxe2 Kxh7 $19 (20... Bxe3+ 21. Bxe3 Rxe3 22. Rf8+ Kxh7 23. Qc2+ Kh6 24. Qd2 $11)) 17... Ne2+ {[%emt 0:03:36]} 18. Kg2 $1 {[%emt 0:02:11]} (18. Qxe2 Rxe4 19. Qd3 Re8 $17 (19... Rxg4 $2 20. Nf6+ Qxf6 21. Rxf6 $18)) 18... Bxg4 {[%emt 0:00:50]} 19. Bxh7+ {[%emt 0:02:23]} Kh8 {[%emt 0:00:24] [#]} 20. Bf5 $1 {[%emt 0:21:32]} (20. Rxf7 $6 Be6 21. Rf5 Nxc1 22. Rxc1 Bxe3 $11) 20... Qg5 {[%emt 0:05:36]} 21. Bxg4 {[%emt 0:02:49]} Qxg4 {[%emt 0:00:02] [#]} 22. Qf5 $1 {[%emt 0:01:03]} Qxf5 {[%emt 0:01:23]} 23. Rxf5 {[%emt 0:00:02]} Rad8 {[%emt 0:00:29]} (23... Nxc1 $16 {is a better defense.} 24. Rxc1 Bxe3) 24. Rh5+ {[%emt 0:00:38]} (24. Nc7 $18 Bxe3 25. Nxe8 Bxc1 26. Nc7) 24... Kg8 $16 {[%emt 0:00:07]} 25. Kf3 {[%emt 0:01:38]} (25. Nc7 $16 Nxc1 26. Nxe8 (26. Rxc5 Rd2+ 27. Kf3 Nd3 $17) 26... Rd2+ (26... Bxe3 $2 {loses.} 27. Nc7 $18) 27. Kf3) 25... Ng1+ $2 {[%emt 0:02:33]} ({Black should try} 25... Nxc1 $1 $14 26. Rxc1 b6) 26. Kf2 $18 {[%emt 0:00:39]} Re6 {[%emt 0:02:36]} (26... f5 {might work better.}) 27. Kxg1 $18 {[%emt 0:00:22]} g6 {[%emt 0:00:41]} 28. Rg5 {[%emt 0:01:37]} Bf8 {[%emt 0:01:03]} 29. e4 {[%emt 0:00:22]} Bg7 {[%emt 0:00:12]} 30. Rg4 {[%emt 0:01:00]} f5 {[%emt 0:00:17]} 31. Rf4 {[%emt 0:00:21]} fxe4 {[%emt 0:00:47]} 32. Ne3 {[%emt 0:00:10]} Rd3 {[%emt 0:00:14]} 33. Kg2 {[%emt 0:00:26]} Bh6 {[%emt 0:00:10]} 34. Ng4 {[%emt 0:00:26]} Bxf4 {[%emt 0:00:12]} 35. Bxf4 {[%emt 0:00:02]} ({And not} 35. gxf4 e3 36. Bxe3 Rexe3 37. Nxe3 Rxe3 $14) 35... Rc6 {[%emt 0:01:10]} 36. Rf1 {[%emt 0:00:26]} Rc2+ {[%emt 0:00:53]} 37. Rf2 {[%emt 0:00:02]} Rxf2+ {[%emt 0:00:32]} 38. Kxf2 {[%emt 0:00:01]} Kg7 {[%emt 0:00:36]} 39. Ke2 {[%emt 0:00:08]} a5 {[%emt 0:00:30]} 40. Nf2 {[%emt 0:00:09]} Rd5 {[%emt 0:00:20]} 41. Nxe4 {[%emt 0:30:08]} Rb5 {[%emt 0:30:33]} (41... b5 $142 42. Nc3 Rh5) 42. Kd3 $18 {[%emt 0:00:30]} a4 {[%emt 0:00:00]} 43. Kc4 {[%emt 0:00:00]} Rb6 {[%emt 0:00:00]} 44. a3 {[%emt 0:00:00]} Kf7 {[%emt 0:00:00]} 45. Be5 {[%emt 0:00:00]} Ke6 {[%emt 0:00:00]} 46. Nc5+ {[%emt 0:00:00]} Kf5 {[%emt 0:00:00]} 47. Bc3 {[%emt 0:00:00]} Kg4 {[%emt 0:00:00]} 48. Nxa4 {[%emt 0:00:00]} Rc6+ {[%emt 0:00:00]} 49. Kb5 {[%emt 0:00:00]} Kh3 {[%emt 0:00:00]} 50. Nc5 {[%emt 0:00:00]} Rc7 {[%emt 0:00:00]} 51. Be5 {[%emt 0:00:00]} Rf7 {[%emt 0:00:00]} 52. Kb6 {[%emt 0:00:00]} Rf5 {[%emt 0:00:00]} 53. Bd6 {[%emt 0:00:00]} Rf2 {[%emt 0:00:00]} 54. b4 {[%emt 0:00:00]} Rxh2 {[%emt 0:00:00]} 55. a4 {[%emt 0:00:00]} 1-0

[Event "British Championship 2024"]
[Site "Hull"]
[Date "2024.08.01"]
[Round "6.7"]
[White "Yao, Lan"]
[Black "Gasanov, Eldar"]
[Result "0-1"]
[Annotator "TA"]
[ECO "C70"]
[WhiteElo "2325"]
[BlackElo "2469"]
[PlyCount "158"]
[EventDate "2024.07.31"]
[EventCountry "GBR"]
[SourceTitle "playchess.com"]
[Source "ChessBase"]
[SourceQuality "1"]
[TimeControl "40/5400+30:1800+30"]

{[%evp 55,158,-48,0,0,0,0,0,-31,-30,-30,-29,-30,-31,-31,-30,-30,-30,-30,-30,-30,-22,-22,0,0,0,-8,-8,-22,-22,-22,-22,-23,-23,-24,-31,-31,-22,-22,-22,-46,-46,-46,-31,-46,-24,-24,-24,-31,-31,-31,-31,-46,-46,-46,-46,-46,-46,-46,-46,-46,-46,-46,-46,-176,-91,-176,-150,-591,-457,-2364,-46,-46,0,-29949,-29951,-29962,-29962,-29964,-29965,-29964,-29965,-29966,-29964,-29964,-29967,-29967,-29967,-29967,-29968,-29970,-29970,-29970,-29971,-29970,-29971,-29974,-29975,-29975,-29975,-29975,-29976,-29979,-29980,-29981,-29982]} 1. e4 {[%emt 0:00:01]} e5 {[%emt 0:00:22]} 2. Nf3 {[%emt 0:00:04]} Nc6 {[%emt 0:00:11]} 3. Bb5 {[%emt 0:00:02]} a6 {[%emt 0:00:27]} 4. Ba4 {[%emt 0:00:03]} Bc5 {[%emt 0:00:27]} 5. c3 {[%emt 0:00:15]} Nge7 {[%emt 0:00:20]} 6. d4 {[%emt 0:00:16]} exd4 {[%emt 0:00:32]} 7. cxd4 {[%emt 0:00:02]} Bb4+ {[%emt 0:00:15]} 8. Nc3 {[%emt 0:00:03]} d5 {[%emt 0:00:28]} 9. e5 {[%emt 0:00:03]} Bg4 {[%emt 0:03:37]} 10. a3 {[%emt 0:00:06]} Ba5 {[%emt 0:01:28]} 11. Be3 {[%emt 0:01:13]} b5 {[%emt 0:09:30]} 12. Bc2 {[%emt 0:00:17]} Bb6 {[%emt 0:06:27]} 13. Qd3 {[%emt 0:14:32]} Qd7 {[%emt 0:04:26]} 14. Nh4 {[%emt 0:05:06]} Ng6 {[%emt 0:03:46]} 15. Nxg6 {[%emt 0:03:31]} hxg6 {[%emt 0:00:19]} 16. Bb3 {[%emt 0:04:59]} Nxe5 {[%emt 0:26:00]} 17. dxe5 {[%emt 0:00:38]} d4 {[%emt 0:00:03]} 18. Bd2 {[%emt 0:05:49]} dxc3 {[%emt 0:00:40]} 19. Qxd7+ {[%emt 0:00:06]} Kxd7 {[%emt 0:00:38]} 20. Bxc3 {[%emt 0:00:16]} Be6 {[%emt 0:03:11]} 21. Rd1+ {[%emt 0:17:30]} Ke7 {[%emt 0:01:42]} 22. Bxe6 {[%emt 0:01:49]} Kxe6 {[%emt 0:00:18]} 23. Ke2 {[%emt 0:05:27]} Rad8 {[%emt 0:04:47]} 24. h3 {[%emt 0:01:17]} g5 {[%emt 0:05:45]} 25. Kf3 {[%emt 0:02:04]} Rxd1 {[%emt 0:03:03]} 26. Rxd1 {[%emt 0:00:02]} Rh4 {[%emt 0:00:01]} 27. Ke2 {[%emt 0:03:50]} a5 {[%emt 0:02:18]} 28. f3 {[%emt 0:04:50]} b4 {[%emt 0:04:58]} (28... Rc4 $15) 29. axb4 $11 {[%emt 0:00:17]} axb4 {[%emt 0:00:07]} 30. Bd2 $1 {[%emt 0:00:31]} Kf5 {[%emt 0:06:28]} 31. Be3 {[%emt 0:11:35]} Bxe3 {[%emt 0:05:00]} (31... Kxe5 32. Bxg5 Rd4 33. b3 $11) 32. Kxe3 {[%emt 0:00:01]} Rc4 {[%emt 0:00:36]} 33. Rd7 {[%emt 0:02:17]} Ke6 {[%emt 0:00:57]} 34. Rd4 {[%emt 0:00:39]} Rc2 {[%emt 0:00:32]} 35. Rxb4 {[%emt 0:00:26]} Rxg2 {[%emt 0:00:32]} 36. Rc4 {[%emt 0:04:52]} Rxb2 {[%emt 0:01:26]} 37. Rxc7 {[%emt 0:00:08]} Rh2 {[%emt 0:03:35]} (37... Kxe5 38. Rxf7 g6 39. Ra7 $11) 38. Ke4 $1 {[%emt 0:01:15]} Rxh3 {[%emt 0:01:38]} 39. Rc6+ {[%emt 0:00:26]} Kd7 {[%emt 0:01:09]} 40. Ra6 {[%emt 0:00:57]} g6 {[%emt 0:01:40]} 41. Ra7+ {[%emt 0:32:04]} Ke6 {[%emt 0:02:45]} 42. Ra6+ {[%emt 0:00:00]} Ke7 {[%emt 0:00:08]} 43. Ra7+ {[%emt 0:00:00]} Kf8 {[%emt 0:00:16]} 44. Ra8+ {[%emt 0:00:00]} Kg7 {[%emt 0:00:25]} 45. Ra7 {[%emt 0:00:00]} Rh4+ {[%emt 0:04:44]} 46. Ke3 {[%emt 0:00:00]} Kf8 {[%emt 0:01:29]} 47. Rb7 {[%emt 0:00:00]} Ra4 {[%emt 0:01:24]} 48. Rc7 {[%emt 0:00:00]} Ra6 {[%emt 0:00:31]} 49. Rb7 {[%emt 0:00:00]} Re6 {[%emt 0:02:05]} 50. Kd4 {[%emt 0:00:00]} Re7 {[%emt 0:01:14]} 51. Rb8+ {[%emt 0:00:00]} Kg7 {[%emt 0:00:05]} 52. Ra8 {[%emt 0:00:00]} Rb7 {[%emt 0:00:10]} 53. Ke4 {[%emt 0:00:00]} Rb4+ {[%emt 0:00:32]} 54. Ke3 {[%emt 0:00:00]} g4 {[%emt 0:01:42]} 55. fxg4 {[%emt 0:00:00]} Rxg4 {[%emt 0:00:26]} 56. Ra7 {[%emt 0:00:00]} Kf8 {[%emt 0:01:12]} 57. Kf3 {[%emt 0:00:00]} Rg5 {[%emt 0:01:31]} 58. Ke4 {[%emt 0:00:00]} Rg1 {[%emt 0:00:57]} 59. Rb7 {[%emt 0:03:38]} (59. Ra8+ $1 $15 Kg7 60. Kf3) 59... Re1+ $1 $19 {[%emt 0:01:27]} 60. Kf4 {[%emt 0:00:14]} (60. Kd5 $17) 60... Rf1+ $1 $19 {[%emt 0:00:46]} 61. Ke4 $2 {[%emt 0:00:09]} (61. Kg3 $17 {is tougher.}) 61... Kg7 $1 $19 {[%emt 0:00:31]} 62. Kd5 {[%emt 0:03:40]} (62. e6 $142 Re1+ 63. Kf4 (63. Kd5 $2 Rxe6 64. Kd4 g5 $19) 63... Rxe6 64. Kg3) 62... Rd1+ $2 {[%emt 0:02:18]} (62... Kh6 $1 $19 {[%cal Rh6h5] ( -> ...Kh5)} 63. e6 fxe6+ 64. Kxe6 g5) 63. Ke4 $15 {[%emt 0:00:13]} Rf1 $2 {[%emt 0:01:23][%mdl 8192]} (63... Ra1 $15) 64. Kd5 $1 {[%emt 0:00:04]} Kh6 $1 {[%emt 0:04:09]} 65. Kd6 {[%emt 0:02:10]} g5 {[%emt 0:02:15]} 66. Rb8 {[%emt 0:01:50]} g4 {[%emt 0:00:53]} 67. Rg8 {[%emt 0:00:22]} Kh5 {[%emt 0:00:27]} 68. Rg7 {[%emt 0:05:48]} Rf5 {[%emt 0:03:35]} 69. Kd5 {[%emt 0:03:49]} Kh4 {[%emt 0:00:42]} 70. Ke4 {[%emt 0:01:35]} Rf1 {[%emt 0:00:20]} 71. Rh7+ {[%emt 0:00:33]} Kg3 {[%emt 0:00:16]} 72. Rg7 {[%emt 0:00:34]} Kh3 {[%emt 0:00:17]} 73. Rh7+ {[%emt 0:00:40] [#]} Kg2 $1 {[%emt 0:00:06]} 74. Rg7 {[%emt 0:01:44]} g3 {[%emt 0:00:07]} 75. Ke3 {[%emt 0:00:16]} Kh2 {[%emt 0:00:31]} 76. Rh7+ {[%emt 0:00:22] [#]} Kg1 $1 {[%emt 0:00:08]} 77. Rg7 {[%emt 0:00:28]} g2 {[%emt 0:00:14]} 78. Ke4 {[%emt 0:00:33]} Rf2 {[%emt 0:00:46]} 79. Ke3 {[%emt 0:01:00]} Kf1 {[%emt 0:00:19]} 0-1

[Event "British Championship 2024"]
[Site "Hull"]
[Date "2024.08.01"]
[Round "6.8"]
[White "Han, Yichen"]
[Black "Balaji, Aaravamudhan"]
[Result "0-1"]
[Annotator "RC"]
[ECO "B06"]
[WhiteElo "2414"]
[BlackElo "2346"]
[PlyCount "72"]
[EventDate "2024.07.31"]
[EventCountry "GBR"]
[SourceTitle "playchess.com"]
[Source "ChessBase"]
[SourceQuality "1"]
[TimeControl "40/5400+30:1800+30"]

1. d4 {[%emt 0:00:02]} d6 {[%emt 0:01:20]} 2. Nc3 {[%emt 0:00:50]} g6 {[%emt 0:01:12]} 3. h4 {[%emt 0:01:20]} h5 {[%emt 0:02:30]} 4. e4 {[%emt 0:00:24]} Bg7 {[%emt 0:01:05]} 5. Nf3 {[%emt 0:00:15]} Nf6 {[%emt 0:05:07]} 6. Ng5 {[%emt 0:02:26]} O-O {[%emt 0:09:54]} 7. Be2 {[%emt 0:03:41]} Nc6 {[%emt 0:09:29]} 8. f3 {[%emt 0:05:59]} e5 {[%emt 0:05:04]} 9. dxe5 {[%emt 0:00:49]} dxe5 {[%emt 0:06:03]} 10. Qxd8 {[%emt 0:07:40]} Rxd8 {[%emt 0:01:18]} 11. Bc4 {[%emt 0:08:11]} Rd7 {[%emt 0:00:40]} 12. Nd1 {[%emt 0:21:35]} Ne8 {[%emt 0:02:14]} 13. c3 {[%emt 0:04:56]} Na5 {[%emt 0:06:18]} 14. Be2 {[%emt 0:01:44]} f6 {[%emt 0:00:12]} 15. Nh3 {[%emt 0:01:00]} Rd8 {[%emt 0:00:14]} 16. b4 {[%emt 0:03:27]} Nc6 {[%emt 0:00:02]} 17. Bc4+ {[%emt 0:00:24]} Kh7 {[%emt 0:04:52]} 18. a3 {[%emt 0:04:41]} Nd6 {[%emt 0:03:09]} 19. Ba2 {[%emt 0:02:07]} a5 {[%emt 0:02:37]} 20. Ne3 {[%emt 0:08:35]} axb4 {[%emt 0:01:09]} 21. cxb4 {[%emt 0:01:57]} Nd4 {[%emt 0:02:06]} 22. Kf2 {[%emt 0:03:10]} N6b5 {[%emt 0:03:55]} 23. g4 {[%emt 0:02:26]} Nc3 {[%emt 0:04:03]} 24. gxh5 {[%emt 0:01:57]} gxh5 {[%emt 0:02:41]} 25. Bf7 {[%emt 0:08:00]} Bh6 {[%emt 0:11:32]} 26. Nd5 {[%emt 0:02:39]} Bxc1 {[%emt 0:03:23]} 27. Raxc1 {[%emt 0:00:35]} Nxd5 {[%emt 0:00:43]} 28. exd5 {[%emt 0:00:11]} Rxa3 {[%emt 0:00:27]} 29. Bxh5 {[%emt 0:01:12]} Ra2+ {[%emt 0:00:44]} 30. Ke1 {[%emt 0:02:40]} Nc2+ {[%emt 0:04:16]} 31. Kd2 {[%emt 0:00:32]} Rxd5+ {[%emt 0:03:36]} 32. Kc3 {[%emt 0:00:09]} Nd4 {[%emt 0:00:22]} 33. Bf7 {[%emt 0:00:44]} Ne2+ {[%emt 0:01:20]} 34. Kb3 {[%emt 0:00:25]} Rdd2 {[%emt 0:00:21]} 35. Rb1 {[%emt 0:00:43]} Nd4+ {[%emt 0:00:28]} 36. Kc4 {[%emt 0:00:06]} b5+ {[%emt 0:00:17]} 0-1

[Event "British Championship 2024"]
[Site "Hull"]
[Date "2024.08.01"]
[Round "6.9"]
[White "Derakhshani, Borna"]
[Black "Lutsko, Artem"]
[Result "1/2-1/2"]
[Annotator "RC"]
[ECO "C95"]
[WhiteElo "2355"]
[BlackElo "2414"]
[PlyCount "79"]
[EventDate "2024.07.31"]
[EventCountry "GBR"]
[SourceTitle "playchess.com"]
[Source "ChessBase"]
[SourceQuality "1"]
[TimeControl "40/5400+30:1800+30"]

1. e4 {[%emt 0:01:03]} e5 {[%emt 0:00:19]} 2. Nf3 {[%emt 0:00:05]} Nc6 {[%emt 0:00:05]} 3. Bb5 {[%emt 0:00:05]} a6 {[%emt 0:00:19]} 4. Ba4 {[%emt 0:00:04]} Nf6 {[%emt 0:01:01]} 5. O-O {[%emt 0:00:18]} Be7 {[%emt 0:00:13]} 6. Re1 {[%emt 0:00:21]} b5 {[%emt 0:00:37]} 7. Bb3 {[%emt 0:00:05]} d6 {[%emt 0:00:12]} 8. c3 {[%emt 0:00:36]} O-O {[%emt 0:00:10]} 9. h3 {[%emt 0:00:18]} Nb8 {[%emt 0:00:22]} 10. d4 {[%emt 0:00:14]} Nbd7 {[%emt 0:00:03]} 11. Nbd2 {[%emt 0:01:16]} Bb7 {[%emt 0:00:05]} 12. Bc2 {[%emt 0:00:04]} c5 {[%emt 0:00:28]} 13. d5 {[%emt 0:00:05]} c4 {[%emt 0:01:46]} 14. b3 {[%emt 0:00:21]} cxb3 {[%emt 0:01:08]} 15. axb3 {[%emt 0:00:05]} Qc7 {[%emt 0:01:05]} 16. Bb2 {[%emt 0:03:03]} Rfb8 {[%emt 0:09:30]} 17. Nb1 {[%emt 0:15:09]} a5 {[%emt 0:06:54]} 18. b4 {[%emt 0:05:07]} Nb6 {[%emt 0:12:03]} 19. Na3 {[%emt 0:00:19]} Ba6 {[%emt 0:20:02]} 20. Qe2 {[%emt 0:26:28]} Qd7 {[%emt 0:09:05]} 21. Bc1 {[%emt 0:08:17]} Na4 {[%emt 0:02:27]} 22. Bd2 {[%emt 0:00:56]} axb4 {[%emt 0:09:37]} 23. cxb4 {[%emt 0:00:05]} Bd8 {[%emt 0:03:12]} 24. Rec1 {[%emt 0:03:14]} Ne8 {[%emt 0:00:01]} 25. Rab1 {[%emt 0:02:58]} Nb6 {[%emt 0:04:28]} 26. Bd3 {[%emt 0:00:44]} Nc8 {[%emt 0:00:22]} 27. Ra1 {[%emt 0:05:16]} Na7 {[%emt 0:01:24]} 28. Ra2 {[%emt 0:02:24]} Bb6 {[%emt 0:00:31]} 29. Be3 {[%emt 0:00:42]} Qb7 {[%emt 0:02:21]} 30. Nd2 {[%emt 0:03:31]} Bxe3 {[%emt 0:03:34]} 31. Qxe3 {[%emt 0:00:32]} Qb6 {[%emt 0:00:02]} 32. Qxb6 {[%emt 0:03:42]} Rxb6 {[%emt 0:00:01]} 33. Nb3 {[%emt 0:01:48]} Kf8 {[%emt 0:04:05]} 34. Rca1 {[%emt 0:01:12]} Rc8 {[%emt 0:01:43]} 35. Nb1 {[%emt 0:00:03]} Nc7 {[%emt 0:00:16]} 36. Nc3 {[%emt 0:00:53]} Ke7 {[%emt 0:00:49]} 37. Kf1 {[%emt 0:01:19]} Kd8 {[%emt 0:00:19]} 38. Ke1 {[%emt 0:00:33]} Rcb8 {[%emt 0:02:39]} 39. Be2 {[%emt 0:08:11]} Nc8 {[%emt 0:00:34]} 40. Kd2 {[%emt 0:05:54]} 1/2-1/2